bitfinex/quotes_ETHUSD_20241223
["timestamp","ask_amount","ask_price","bid_price","bid_amount"]
[1734946783572,2.99842,3335.1,3334.6,0.8117]
[1734946785357,2.9987,3334.8,3334.5,0.5859926]
[1734946785557,2.99879,3334.7,3334.5,0.5859926]
[1734946788258,0.7778,3335.0,3334.5,0.5859926]
[1734946788467,0.7739,3335.2,3334.5,0.5859926]
[1734946788640,2.9986,3334.9,3334.5,0.5859926]
[1734946788973,0.7739,3335.2,3334.5,0.5859926]
[1734946789131,0.7739,3335.2,3333.9,2.19903483]
[1734946789334,2.9994,3334.0,3333.9,0.60713062]
[1734946789544,2.99958,3333.8,3333.6,0.7596]
[1734946790345,2.99951,3333.9,3333.6,0.7596]
[1734946791280,2.99935,3334.1,3333.6,0.7596]
[1734946791641,0.7626,3334.3,3333.6,0.7596]
[1734946791865,2.9994,3334.0,3333.6,0.7596]
[1734946792577,0.7626,3334.3,3333.6,0.7596]
[1734946792784,2.99946,3334.0,3333.6,0.7596]
[1734946793437,0.7626,3334.3,3333.6,1.11447706]
[1734946793601,0.8328,3334.6,3333.6,1.11447706]
[1734946793803,2.99897,3334.5,3333.6,1.11447706]
[1734946793997,3.83166,3334.6,3333.6,1.11447706]
[1734946794238,2.99927,3334.2,3333.6,1.11447706]
[1734946794960,2.99909,3334.4,3333.7,0.41144771]
[1734946795237,2.99918,3334.3,3333.7,0.41144771]
[1734946797047,2.99918,3334.3,3333.6,1.11447706]
[1734946797048,2.99913,3334.3,3333.6,1.11447706]
[1734946797201,3.0,3334.6,3333.3,1.35003577]
[1734946797406,2.99958,3333.8,3333.3,0.7599]
[1734946797640,2.99994,3333.4,3333.3,0.7599]
[1734946797804,0.8149,3333.9,3333.3,0.7599]
[1734946798015,2.9996,3333.8,3333.3,0.7599]
[1734946798443,0.8149,3333.9,3333.3,0.7599]
[1734946798638,2.99967,3333.7,3333.3,0.7599]
[1734946799352,2.99974,3333.7,3333.3,0.7599]
[1734946800118,2.9994,3334.0,3333.3,0.7599]
[1734946800315,2.99931,3334.1,3333.3,0.7599]
[1734946800548,2.99983,3333.6,3333.3,0.7599]
[1734946802155,2.99944,3334.0,3333.3,0.7599]
[1734946802332,5.49373769,3334.4,3333.3,0.7599]
[1734946802333,2.9992,3334.3,3333.4,0.80959553]
[1734946802529,2.99923,3334.2,3333.4,0.7796]
[1734946802731,2.99933,3334.1,3333.5,0.59786448]
[1734946802959,2.99933,3334.1,3333.4,0.7796]
[1734946805257,2.99914,3334.3,3333.6,0.8062]
[1734946805457,2.49469769,3334.7,3334.0,0.8062]
[1734946805619,2.49469769,3334.7,3334.1,0.02998811]
[1734946805818,2.49469769,3334.7,3334.0,0.8062]
[1734946805819,2.49469769,3334.7,3334.4,2.99902]
[1734946806054,2.49469769,3334.7,3334.3,0.8062]
[1734946806055,2.49469769,3334.7,3334.6,2.99886]
[1734946806221,2.49469769,3334.7,3334.6,3.80506]
[1734946806647,5.49274769,3335.5,3334.6,0.8062]
[1734946807453,2.99827,3335.3,3334.6,0.8062]
[1734946807753,2.99833,3335.2,3334.6,0.8062]
[1734946808071,2.99833,3335.2,3334.6,1.29296094]
[1734946808675,2.99813,3335.5,3334.6,1.89231334]
[1734946809247,2.99806,3335.5,3334.6,1.89231334]
[1734946809454,2.99823,3335.3,3334.6,1.89231334]
[1734946809644,2.99787,3335.7,3334.6,1.89231334]
[1734946810054,2.99822,3335.4,3334.6,1.89231334]
[1734946810463,2.99797,3335.6,3334.7,3.51787661]
[1734946810653,2.99806,3335.5,3334.7,0.48913233]
[1734946811790,2.49469769,3335.8,3334.7,0.48913233]
[1734946812084,2.99796,3335.6,3334.6,1.4055524]
[1734946812389,2.99845,3335.1,3334.6,1.4055524]
[1734946813172,0.7555,3335.4,3334.6,1.4055524]
[1734946813376,2.99808,3335.5,3334.7,0.7501]
[1734946814980,5.49240769,3335.9,3334.7,0.7501]
[1734946814981,2.49469769,3335.9,3334.7,0.7501]
[1734946815281,2.99789,3335.7,3334.9,0.7902]
[1734946816952,2.99812,3335.5,3334.9,0.7902]
[1734946817363,2.9979,3335.7,3334.9,0.7902]
[1734946817572,2.99797,3335.6,3334.9,0.7902]
[1734946818791,2.99815,3335.4,3334.9,0.7902]
[1734946820821,0.8057,3335.8,3334.9,0.7902]
[1734946821122,2.49469769,3335.9,3335.4,2.99813]
[1734946821258,2.49469769,3335.9,3335.6,0.7736]
[1734946822093,0.11,3336.2,3335.6,0.7736]
[1734946822993,3.10743,3336.2,3335.6,0.7736]
[1734946823210,0.11,3336.2,3335.6,0.7736]
[1734946824420,0.11,3336.2,3335.7,0.5895987]
[1734946824595,0.11,3336.2,3335.8,0.17403717]
[1734946825491,0.11,3336.2,3335.9,0.8037]
[1734946825699,0.11,3336.2,3335.9,3.8037]
[1734946826387,0.11,3336.2,3335.9,3.83367293]
[1734946826589,0.11,3336.2,3335.9,0.8037]
[1734946826801,0.11,3336.2,3336.0,0.45673359]
[1734946827386,0.11,3336.2,3335.9,0.8037]
[1734946830039,0.11,3336.2,3335.9,3.80138]
[1734946830196,0.11,3336.2,3335.9,0.8037]
[1734946830400,0.11,3336.2,3336.0,2.99759]
[1734946830603,0.11,3336.2,3336.1,0.7552]
[1734946830846,0.11,3336.2,3336.1,1.37102436]
[1734946832326,0.11,3336.2,3335.9,0.7815]
[1734946834255,0.11,3336.2,3335.7,0.5895987]
[1734946835231,3.1075,3336.2,3335.6,0.7815]
[1734946835859,3.1075,3336.2,3335.6,1.39472183]
[1734946836151,0.11,3336.2,3335.6,1.39472183]
[1734946836354,0.11,3336.2,3335.7,0.39709297]
[1734946838826,3.10743,3336.2,3335.7,0.39709297]
[1734946839315,0.9205,3336.2,3335.6,0.61322183]
[1734946839535,0.9205,3336.2,3335.3,0.7912]
[1734946839758,2.99787,3335.7,3335.3,0.7912]
[1734946839959,2.99821,3335.4,3335.3,0.59670219]
[1734946840135,2.99751,3336.1,3334.9,0.7912]
[1734946840136,0.8105,3335.5,3334.9,0.7912]
[1734946840341,3.80858,3335.5,3334.9,0.7912]
[1734946840537,3.80858,3335.5,3334.9,1.09022348]
[1734946840942,3.80858,3335.5,3334.9,1.69509063]
[1734946841322,2.99808,3335.5,3334.9,1.69509063]
[1734946841929,0.8105,3335.8,3334.9,1.69509063]
[1734946842135,2.99778,3335.8,3335.1,2.19903483]
[1734946842337,2.99778,3335.8,3335.1,3.48830338]
[1734946845268,0.8105,3336.1,3335.1,3.48830338]
[1734946845436,2.9978,3335.8,3335.1,3.48830338]
[1734946845897,0.8105,3336.1,3335.2,0.7912]
[1734946846187,3.10746,3336.2,3335.4,0.7912]
[1734946846400,2.99755,3336.1,3335.5,0.37894]
[1734946847384,2.9976,3336.0,3335.5,0.37894]
[1734946847591,2.9976,3336.0,3335.4,0.7912]
[1734946847967,0.8105,3336.1,3335.5,0.60279992]
[1734946848184,2.99787,3335.7,3335.0,3.7912]
[1734946848350,0.8206,3335.6,3335.0,3.7912]
[1734946848550,2.99787,3335.7,3335.1,0.59902348]
[1734946848749,0.8206,3335.8,3335.1,0.59902348]
[1734946848953,2.99805,3335.6,3335.1,0.59902348]
[1734946849357,2.99805,3335.5,3335.1,0.59902348]
[1734946850638,0.8206,3335.8,3335.1,0.59902348]
[1734946850838,2.99797,3335.6,3335.2,0.71750052]
[1734946852891,3.8184,3335.8,3335.2,0.71750052]
[1734946853488,2.99767,3336.0,3335.3,0.7577]
[1734946854056,2.49469769,3336.1,3335.3,0.7577]
[1734946854261,5.49226769,3336.1,3335.3,0.7577]
[1734946854477,2.99757,3336.1,3335.4,0.66725454]
[1734946854661,2.99754,3336.1,3335.4,0.66725454]
[1734946854972,0.9254,3336.2,3335.0,4.40314691]
[1734946855178,2.99808,3335.5,3335.0,4.40314691]
[1734946856496,3.42009769,3336.2,3335.0,4.40314691]
[1734946856655,2.99788,3335.7,3335.0,4.40314691]
[1734946856861,3.42009769,3336.2,3335.1,0.7532]
[1734946857174,2.99767,3336.0,3335.3,0.7532]
[1734946857356,2.99767,3336.0,3335.3,2.95223483]
[1734946857552,5.60218769,3336.2,3335.3,2.95223483]
[1734946857755,5.60218769,3336.2,3335.4,0.8145]
[1734946858072,3.10749,3336.2,3335.4,0.8145]
[1734946858283,3.10749,3336.2,3335.5,0.3967183]
[1734946859684,3.10749,3336.2,3335.6,0.5855404]
[1734946859836,0.11,3336.2,3335.7,0.7902]
[1734946867550,2.99753,3336.1,3335.7,0.7902]
[1734946867980,2.99779,3335.8,3335.6,2.78457523]
[1734946868179,3.75795,3336.1,3335.4,3.0]
[1734946868387,0.7604,3336.1,3335.3,0.7976]
[1734946868586,2.99815,3335.4,3334.9,1.35477847]
[1734946868806,2.99815,3335.4,3334.9,2.9164829]
[1734946868973,2.99815,3335.4,3334.9,1.35477847]
[1734946869175,3.25509769,3336.1,3334.9,1.35477847]
[1734946869381,2.49469769,3336.1,3335.4,2.19903483]
[1734946869678,2.9977,3335.9,3335.4,2.19903483]
[1734946869878,2.49469769,3336.1,3335.4,2.19903483]
[1734946870080,5.49224769,3336.1,3335.5,0.30258348]
[1734946871107,2.99755,3336.1,3335.5,0.30258348]
[1734946872019,2.60469769,3336.2,3335.5,0.30258348]
[1734946872209,2.60469769,3336.2,3335.6,0.7849]
[1734946872970,2.60469769,3336.2,3335.8,2.19903483]
[1734946873171,2.60469769,3336.2,3335.9,0.29839348]
[1734946873390,0.11,3336.2,3335.9,0.29839348]
[1734946873786,0.11,3336.2,3336.0,0.8177]
[1734946873986,0.11,3336.2,3336.0,3.81525]
[1734946874234,0.11,3336.2,3336.0,0.8177]
[1734946874415,0.11,3336.2,3336.1,0.39139066]
[1734946875597,0.11,3336.2,3336.1,6.39453549]
[1734946875815,0.11,3336.2,3336.1,9.39453549]
[1734946876129,0.11,3336.2,3336.1,6.39702549]
[1734946877814,0.11,3336.2,3336.1,9.39453549]
[1734946878701,2.49469769,3337.1,3336.3,2.99728]
[1734946878899,2.49469769,3337.1,3336.9,0.792]
[1734946879154,2.49469769,3337.1,3336.9,3.792]
[1734946879547,3.11837211,3337.3,3337.2,2.99652]
[1734946879830,3.74204653,3337.6,3337.2,2.99652]
[1734946879831,2.51127603,3337.6,3337.3,3.0]
[1734946880030,2.51127603,3337.6,3337.4,0.59736348]
[1734946880393,5.50749603,3337.6,3337.1,0.7746]
[1734946880621,2.51127603,3337.6,3336.7,0.7866]
[1734946880792,2.99663,3337.1,3336.7,0.7866]
[1734946881207,2.51127603,3337.6,3336.7,0.7866]
[1734946881411,2.99643,3337.4,3336.7,0.7866]
[1734946882229,0.7502,3337.7,3336.7,1.20849272]
[1734946882530,2.99605,3337.8,3336.7,0.7866]
[1734946882736,3.11837211,3337.9,3337.5,0.7937]
[1734946882896,3.11837211,3337.9,3337.3,0.60265359]
[1734946883294,3.11837211,3337.9,3337.2,0.7937]
[1734946883495,3.11837211,3337.9,3337.2,1.39521367]
[1734946883709,3.11837211,3337.9,3337.3,0.35942485]
[1734946883919,2.99574,3338.1,3337.3,0.35942485]
[1734946884620,0.8044,3338.4,3337.3,0.35942485]
[1734946884805,0.8044,3338.4,3337.6,2.19903483]
[1734946885419,2.99564,3338.2,3337.6,2.19903483]
[1734946885808,3.79987,3338.4,3337.6,2.4548808]
[1734946886011,0.8212,3338.4,3337.6,3.2740808]
[1734946886214,3.81639,3338.7,3338.2,2.19903483]
[1734946886412,0.8212,3338.7,3338.2,2.19903483]
[1734946886666,0.0453172,3338.8,3338.3,0.8192]
[1734946886801,3.11837211,3339.0,3338.8,0.8192]
[1734946887135,3.74204653,3339.3,3339.2,2.99472]
[1734946887339,4.36572096,3339.7,3339.6,0.7631]
[1734946887642,4.36572096,3339.7,3339.6,2.96213483]
[1734946887855,4.36572096,3339.7,3339.6,4.15634831]
[1734946888067,4.36572096,3339.7,3339.6,7.15071831]
[1734946888355,2.50133598,3340.8,3339.6,5.95650483]
[1734946888500,2.9934,3340.7,3339.6,5.95650483]
[1734946889044,2.50133598,3340.8,3339.7,2.99425]
[1734946889340,2.9932,3340.9,3339.7,2.99425]
[1734946889511,2.99337,3340.8,3340.3,2.19903483]
[1734946889717,0.8306,3340.7,3340.3,2.19903483]
[1734946890126,0.8306,3340.7,3339.7,2.99425]
[1734946890326,0.8306,3340.7,3340.1,2.81135942]
[1734946890817,0.8306,3340.7,3339.7,2.81135942]
[1734946891145,2.99395,3340.1,3339.3,2.81135942]
[1734946891467,2.99347,3340.6,3339.3,2.81135942]
[1734946891946,2.99384,3340.2,3339.3,2.81135942]
[1734946892315,2.99347,3340.6,3339.3,2.81135942]
[1734946892519,2.994,3340.1,3339.3,2.81135942]
[1734946892947,2.99361,3340.5,3339.3,2.81135942]
[1734946892948,2.99402,3340.0,3339.3,2.81135942]
[1734946893806,2.99411,3339.9,3339.3,2.81135942]
[1734946894148,2.99403,3340.0,3339.3,2.81135942]
[1734946894343,2.99386,3340.2,3339.3,2.81135942]
[1734946894650,2.99392,3340.1,3339.3,2.81135942]
[1734946895020,3.8306,3340.7,3339.3,2.81135942]
[1734946895218,2.99371,3340.4,3339.3,2.81135942]
[1734946895529,2.99378,3340.3,3339.3,3.53321235]
[1734946896104,0.8306,3340.7,3339.7,2.81135942]
[1734946896305,2.99357,3340.5,3339.7,2.81135942]
[1734946896747,2.99362,3340.5,3339.7,2.81135942]
[1734946897641,5.99352,3340.6,3339.3,2.81135942]
[1734946897815,2.99356,3340.5,3339.3,2.81135942]
[1734946898016,2.99384,3340.2,3339.3,2.81135942]
[1734946898653,2.99368,3340.4,3339.3,4.43122035]
[1734946898861,2.99368,3340.4,3339.7,2.81135942]
[1734946899248,2.99348,3340.6,3339.8,0.8327]
[1734946899477,0.8265,3341.3,3340.1,2.81135942]
[1734946899788,3.81941,3341.3,3340.1,2.81135942]
[1734946899948,0.8265,3341.3,3340.1,2.81135942]
[1734946900151,2.99306,3341.1,3340.1,2.81135942]
[1734946900462,2.99306,3341.1,3340.1,3.17576536]
[1734946901288,2.99306,3341.1,3340.2,0.7967]
[1734946901489,0.8265,3341.3,3340.2,0.7967]
[1734946902189,2.99344,3340.7,3340.2,0.7967]
[1734946902501,5.99308,3341.1,3340.2,0.7967]
[1734946902502,3.0,3341.1,3340.2,0.7967]
[1734946902707,2.99293,3341.2,3340.2,0.7967]
[1734946902907,3.0,3341.1,3340.2,0.7967]
[1734946903203,2.99328,3340.9,3340.2,0.7967]
[1734946903808,3.0,3341.1,3340.2,0.7967]
[1734946904252,0.8265,3341.3,3340.2,0.7967]
[1734946904848,2.99337,3340.8,3340.2,0.7967]
[1734946905294,2.99347,3340.6,3340.2,0.7967]
[1734946908811,2.99307,3341.1,3340.2,0.7967]
[1734946908988,2.99365,3340.4,3340.2,0.7967]
[1734946909867,2.99354,3340.6,3340.2,0.7967]
[1734946910073,2.99293,3341.2,3340.2,0.7967]
[1734946910455,2.99363,3340.5,3340.2,0.7967]
[1734946910883,2.99327,3340.9,3339.6,0.60747957]
[1734946910884,2.9941,3339.9,3339.8,0.7635]
[1734946911088,2.99384,3340.2,3339.8,0.7635]
[1734946911288,0.7948,3341.2,3339.8,0.7635]
[1734946911504,2.99395,3340.1,3339.8,0.7635]
[1734946912450,0.7948,3341.2,3339.8,0.7635]
[1734946912655,0.7948,3340.7,3339.5,0.7635]
[1734946912907,2.99437,3339.6,3339.5,0.7635]
[1734946913519,0.7579,3340.1,3339.1,0.7816]
[1734946913688,2.99408,3340.0,3339.1,0.7816]
[1734946913883,2.99423,3339.8,3339.1,0.7816]
[1734946914103,2.99423,3339.8,3339.1,2.33423117]
[1734946914321,2.99423,3339.8,3339.3,2.18378066]
[1734946915312,0.7579,3340.5,3339.3,2.18378066]
[1734946915497,2.99417,3339.9,3339.3,2.18378066]
[1734946915705,2.99419,3339.8,3339.3,2.18378066]
[1734946916466,2.99432,3339.7,3339.3,2.18378066]
[1734946916687,2.99416,3339.9,3339.3,2.18378066]
[1734946917017,2.99428,3339.7,3339.3,2.18378066]
[1734946918119,2.99365,3340.4,3339.3,2.18378066]
[1734946918325,2.99446,3339.5,3339.1,0.7816]
[1734946918547,2.99446,3339.5,3339.1,1.13672317]
[1734946919440,2.99412,3339.9,3339.1,0.7816]
[1734946919749,2.99472,3339.2,3339.1,0.7816]
[1734946919947,2.99495,3339.0,3338.8,0.8228]
[1734946920300,2.99472,3339.2,3338.5,0.8228]
[1734946920528,2.99516,3338.8,3338.5,0.8228]
[1734946920735,2.99492,3339.0,3338.5,0.8228]
[1734946921057,3.8312,3339.8,3338.5,0.8228]
[1734946921243,2.99518,3338.7,3338.5,0.8228]
[1734946921446,2.99518,3338.7,3337.4,2.99631]
[1734946921447,0.8312,3339.5,3338.3,0.8228]
[1734946921603,2.99544,3338.4,3338.3,0.8228]
[1734946921933,3.0,3339.8,3337.8,2.18378066]
[1734946921934,2.9957,3338.2,3337.9,0.7567]
[1734946922120,2.99548,3338.4,3337.9,1.05074807]
[1734946923926,0.7938,3339.7,3338.2,0.7608]
[1734946924192,2.99498,3339.0,3338.5,2.18378066]
[1734946924593,0.7938,3339.7,3338.6,0.8067]
[1734946924919,2.99453,3339.5,3338.8,2.18378066]
[1734946925126,2.99453,3339.5,3339.0,0.8067]
[1734946925637,0.7647,3340.0,3339.0,0.8067]
[1734946925788,2.99452,3339.5,3339.0,0.8067]
[1734946926189,0.7647,3340.0,3339.0,0.8067]
[1734946926429,2.99455,3339.4,3339.0,0.8067]
[1734946926638,0.7647,3340.0,3339.0,0.8067]
[1734946926639,2.99439,3339.6,3339.0,1.10574807]
[1734946926840,2.99446,3339.5,3339.0,1.10574807]
[1734946927042,2.99446,3339.5,3339.0,0.8067]
[1734946928639,2.99456,3339.4,3339.0,0.8067]
[1734946929308,2.9941,3339.9,3339.0,0.8067]
[1734946929646,2.99441,3339.6,3339.0,0.8067]
[1734946929996,2.9941,3339.9,3339.0,0.8067]
[1734946929997,2.99425,3339.8,3339.0,0.8067]
[1734946930228,2.99463,3339.4,3339.0,0.8067]
[1734946930430,2.99467,3339.3,3339.0,0.8067]
[1734946930695,2.99481,3339.1,3339.0,0.8067]
[1734946930926,2.99481,3339.1,3338.7,0.8222]
[1734946931138,2.99481,3339.1,3338.7,2.32079807]
[1734946931636,0.8099,3339.4,3338.7,2.32079807]
[1734946931832,0.8099,3339.4,3338.7,0.8222]
[1734946932009,2.99474,3339.2,3338.7,0.8222]
[1734946933490,2.99478,3339.2,3338.7,0.8222]
[1734946937755,2.99459,3339.4,3338.7,0.8222]
[1734946938980,2.99443,3339.6,3338.7,0.8222]
[1734946939263,2.99437,3339.6,3338.7,0.8222]
[1734946939465,2.99523,3338.7,3338.4,0.8277]
[1734946939772,2.99523,3338.7,3338.4,1.80847]
[1734946940072,2.99503,3338.9,3338.4,1.80847]
[1734946941358,2.99478,3339.2,3338.5,0.7516]
[1734946941625,2.99465,3339.3,3338.5,2.93538066]
[1734946942835,2.99474,3339.2,3338.5,2.93538066]
[1734946943041,2.99474,3339.2,3338.6,0.39161507]
[1734946943242,2.99483,3339.1,3338.6,0.39161507]
[1734946945076,2.99467,3339.3,3338.6,0.39161507]
[1734946945844,2.99476,3339.2,3338.6,0.39161507]
[1734946948645,3.0,3339.7,3338.6,0.39161507]
[1734946948830,2.99482,3339.1,3338.6,0.39161507]
[1734946949027,2.99482,3339.1,3338.7,0.43077657]
[1734946950128,2.99526,3338.6,3337.5,8.98]
[1734946950359,0.7855,3339.2,3337.7,0.7905]
[1734946950974,2.9949,3339.0,3337.7,0.7905]
[1734946951176,2.9949,3339.0,3337.8,1.19542807]
[1734946951474,0.7706,3338.7,3337.4,2.02609238]
[1734946951675,2.99625,3337.5,3337.4,2.02609238]
[1734946951901,2.99611,3337.7,3337.4,2.02609238]
[1734946952168,0.7838,3338.8,3337.5,0.8329]
[1734946952375,2.99519,3338.7,3337.8,0.8329]
[1734946952669,2.99519,3338.7,3338.0,0.8329]
[1734946952854,2.99519,3338.7,3338.0,3.01668066]
[1734946953572,2.99537,3338.5,3338.0,0.8329]
[1734946954473,2.99537,3338.5,3338.1,0.38329]
[1734946954776,2.99494,3339.0,3338.2,0.8005]
[1734946954974,2.99494,3339.0,3338.2,0.83045586]
[1734946955427,2.50133598,3339.1,3338.4,0.8005]
[1734946955623,2.99473,3339.2,3338.4,0.8005]
[1734946955824,2.99473,3339.2,3338.5,0.59798107]
[1734946956029,2.50133598,3339.4,3338.4,0.8005]
[1734946956229,0.7798,3339.2,3338.4,0.8005]
[1734946956539,2.99517,3338.8,3338.4,0.8005]
[1734946956739,0.7798,3339.2,3338.4,0.8005]
[1734946957158,2.99527,3338.6,3338.4,0.8005]
[1734946957338,0.7798,3339.2,3338.1,1.20329]
[1734946957339,2.99481,3339.1,3338.1,1.20329]
[1734946957539,2.99549,3338.4,3338.1,0.82]
[1734946959179,2.99562,3338.2,3338.1,0.82]
[1734946959384,5.99088,3338.4,3337.7,0.7933]
[1734946959546,2.99598,3337.8,3337.7,0.7933]
[1734946959746,2.99596,3337.9,3337.1,2.18378066]
[1734946960009,2.99596,3337.9,3337.2,0.47963607]
[1734946960694,2.99562,3338.2,3337.2,0.47963607]
[1734946960991,2.99599,3337.8,3337.2,0.47963607]
[1734946961686,2.99562,3338.2,3337.3,0.7614]
[1734946961904,2.50133598,3338.3,3337.5,0.8155]
[1734946962044,2.50133598,3338.3,3337.8,3.0]
[1734946962243,2.50133598,3338.3,3337.9,0.8155]
[1734946962795,2.99527,3338.6,3337.9,0.8155]
[1734946963347,2.50133598,3338.9,3337.9,0.8155]
[1734946963569,2.9956,3338.3,3337.9,0.8155]
[1734946964249,2.9949,3339.0,3337.9,0.8155]
[1734946964670,2.99556,3338.3,3337.9,0.8155]
[1734946965974,2.50133598,3338.7,3337.9,0.8155]
[1734946966180,5.49653598,3338.7,3337.9,0.8155]
[1734946966491,2.99555,3338.3,3337.9,0.8155]
[1734946966698,5.49653598,3338.7,3337.9,0.8155]
[1734946966699,2.9957,3338.2,3337.9,0.8155]
[1734946967060,2.99574,3338.1,3337.6,1.09382421]
[1734946967289,2.99574,3338.1,3337.7,0.68796784]
[1734946968293,2.99561,3338.3,3337.8,0.7789]
[1734946968457,2.50133598,3338.7,3337.8,0.7789]
[1734946968655,2.99566,3338.2,3337.8,0.7789]
[1734946970091,2.99548,3338.4,3337.8,0.7789]
[1734946970269,2.50133598,3338.8,3337.8,0.7789]
[1734946970270,2.50133598,3338.8,3337.8,0.95887499]
[1734946970472,2.50133598,3338.8,3338.1,0.7916]
[1734946970995,3.30503598,3338.8,3338.1,0.7916]
[1734946971291,2.99533,3338.6,3338.1,0.7916]
[1734946974109,2.99537,3338.5,3338.1,0.7916]
[1734946974314,2.50133598,3338.9,3338.5,0.8305]
[1734946974479,2.50133598,3338.9,3338.8,0.7787]
[1734946975382,2.50133598,3338.9,3338.8,3.77378]
[1734946975712,2.50133598,3338.9,3338.8,0.7787]
[1734946975913,2.99447,3339.5,3338.8,0.7787]
[1734946978413,2.99449,3339.5,3338.8,0.7787]
[1734946978709,2.50133598,3339.8,3338.9,0.1668344]
[1734946978918,2.99449,3339.5,3338.9,0.1668344]
[1734946979911,2.99456,3339.4,3339.0,0.8115]
[1734946980674,2.99419,3339.8,3339.0,0.8115]
[1734946980675,2.50133598,3339.9,3339.0,0.8115]
[1734946981028,2.99475,3339.2,3339.0,0.8115]
[1734946981734,2.50133598,3339.8,3339.0,0.8115]
[1734946981735,2.99435,3339.7,3339.0,0.8115]
[1734946982030,2.50133598,3339.7,3339.1,0.380655]
[1734946982197,2.50133598,3339.7,3339.3,0.7988]
[1734946982394,2.50133598,3339.7,3339.4,0.7988]
[1734946982781,5.49568598,3339.7,3339.4,0.7988]
[1734946982981,3.7584,3340.1,3338.8,0.801]
[1734946983196,2.99432,3339.7,3338.9,0.801]
[1734946983391,6.7524,3340.1,3338.9,0.801]
[1734946983392,3.7584,3340.1,3338.9,0.801]
[1734946983838,2.99447,3339.5,3338.9,0.801]
[1734946983986,2.99456,3339.4,3338.9,0.801]
[1734946990257,5.49534598,3340.0,3338.9,0.801]
[1734946990466,5.49534598,3340.0,3338.9,1.27209126]
[1734946990754,2.99443,3339.6,3338.9,1.27209126]
[1734946991121,2.99449,3339.5,3338.9,1.27209126]
[1734946991327,2.99401,3340.0,3338.9,0.801]
[1734946991540,2.99471,3339.3,3338.9,0.801]
[1734946991943,0.8331,3339.6,3338.9,0.801]
[1734946992278,2.99511,3338.8,3338.6,0.8169]
[1734946993746,2.50133598,3339.4,3338.6,0.8169]
[1734946993747,2.99517,3338.7,3338.6,0.8169]
[1734946993914,2.99517,3338.7,3338.2,0.7794]
[1734946994240,2.99543,3338.5,3338.2,0.7794]
[1734946994766,2.99514,3338.8,3338.2,0.7794]
[1734946995055,2.99517,3338.7,3338.2,0.7794]
[1734946995257,2.99538,3338.5,3338.2,0.7794]
[1734946996831,2.99538,3338.5,3337.6,2.99616]
[1734946996832,2.99573,3338.1,3337.6,0.7776]
[1734946997250,0.7906,3339.0,3337.7,0.29613807]
[1734946997452,3.7906,3339.0,3337.7,0.29613807]
[1734946997820,6.29193598,3339.0,3337.7,0.29613807]
[1734946998147,2.99571,3338.2,3337.7,0.29613807]
[1734946998813,2.99552,3338.4,3337.7,0.29613807]
[1734946999033,2.99552,3338.4,3337.8,0.38713005]
[1734946999278,2.99555,3338.3,3337.8,0.38713005]
[1734947001775,2.99555,3338.3,3337.6,0.7776]
[1734947001776,0.8152,3338.2,3337.0,0.7974]
[1734947001942,0.8152,3338.2,3337.0,3.7974]
[1734947002137,0.8152,3338.2,3337.0,0.7974]
[1734947002347,2.99616,3337.7,3337.0,0.7974]
[1734947002549,2.99616,3337.6,3337.0,0.7974]
[1734947002781,2.99616,3337.6,3337.1,0.35871013]
[1734947005685,2.996,3337.8,3337.1,0.35871013]
[1734947005980,0.8152,3338.2,3337.1,0.35871013]
[1734947006142,2.99591,3337.9,3337.1,0.35871013]
[1734947006346,2.99591,3337.9,3337.2,2.18378066]
[1734947006547,2.99591,3337.9,3337.4,0.8062]
[1734947006742,2.9958,3338.1,3337.4,0.8062]
[1734947006944,2.50133598,3338.4,3337.4,0.8062]
[1734947007276,2.99604,3337.8,3337.4,0.8062]
[1734947007455,2.99566,3338.2,3337.4,0.8062]
[1734947007642,2.99588,3338.0,3337.4,0.8062]
[1734947007842,2.99588,3338.0,3337.4,1.10519807]
[1734947008580,2.99573,3338.1,3337.4,1.10519807]
[1734947009977,0.767,3338.5,3337.4,1.10519807]
[1734947010193,2.99581,3338.0,3337.4,1.10519807]
[1734947010962,2.99553,3338.3,3337.4,1.10519807]
[1734947011166,2.99583,3338.0,3337.4,1.10519807]
[1734947012208,2.99583,3338.0,3337.5,0.32889787]
[1734947012513,2.99537,3338.5,3337.6,0.8036]
[1734947012683,2.9957,3338.2,3337.6,0.8036]
[1734947013010,2.99573,3338.1,3337.6,0.8036]
[1734947013385,2.50133598,3338.7,3337.7,0.8036]
[1734947013570,2.50133598,3338.7,3337.8,0.63124285]
[1734947013775,2.99539,3338.5,3337.8,0.63124285]
[1734947014589,2.99539,3338.5,3337.7,0.8036]
[1734947014590,2.99565,3338.2,3337.7,0.8036]
[1734947015791,0.8104,3338.8,3337.7,0.8036]
[1734947015792,2.99547,3338.4,3337.7,0.8036]
[1734947017722,2.99553,3338.3,3337.7,0.8036]
[1734947018373,0.8104,3338.8,3337.7,0.8036]
[1734947018570,2.99567,3338.2,3337.7,0.8036]
[1734947019387,0.8104,3338.8,3337.7,0.8036]
[1734947019579,2.99542,3338.5,3337.7,0.8036]
[1734947019780,2.50133598,3338.9,3337.9,0.785]
[1734947020217,2.99543,3338.5,3337.9,0.785]
[1734947022201,2.99508,3338.8,3337.9,0.785]
[1734947022443,2.99546,3338.4,3337.9,0.785]
[1734947023088,2.99556,3338.3,3337.9,0.785]
[1734947024489,2.99499,3338.9,3337.9,0.785]
[1734947024826,2.99532,3338.6,3337.9,0.785]
[1734947024984,2.99532,3338.6,3337.9,1.163105]
[1734947025188,2.99536,3338.5,3337.9,1.163105]
[1734947025636,0.8217,3339.0,3337.9,1.163105]
[1734947025846,2.50133598,3339.1,3338.0,0.7573]
[1734947025987,2.99518,3338.7,3338.0,0.7573]
[1734947027830,2.99495,3339.0,3338.0,0.7573]
[1734947028037,5.99016,3338.8,3337.2,2.99649]